bitfinex/quotes_SOLUSD_20250123
["timestamp","ask_amount","ask_price","bid_price","bid_amount"]
[1737608575691,23.776884,247.56,247.53,0.063]
[1737608575869,44.10035766,247.54,247.53,0.063]
[1737608577894,0.75764023,247.55,247.53,0.063]
[1737608578080,1.5697,247.61,247.53,18.81677366]
[1737608578279,1.5697,247.61,247.58,18.75377366]
[1737608578695,0.7573721,247.65,247.58,18.75377366]
[1737608578870,23.776884,247.63,247.56,18.75377366]
[1737608579696,23.776884,247.61,247.56,18.75377366]
[1737608579869,23.776884,247.59,247.54,18.75377366]
[1737608580075,23.776884,247.59,247.53,0.063]
[1737608580397,23.776884,247.59,247.54,18.75377366]
[1737608580978,23.776884,247.54,247.53,0.063]
[1737608581476,23.776884,247.59,247.53,18.81677366]
[1737608581996,27.815784,247.59,247.53,18.81677366]
[1737608583201,4.0387,247.61,247.55,18.75377366]
[1737608583995,20.32347366,247.67,247.59,18.75377366]
[1737608584200,1.5697,247.67,247.63,18.75377366]
[1737608584390,20.38817366,247.73,247.65,18.75377366]
[1737608584596,10.5337,247.76,247.7,18.75377366]
[1737608584896,0.03,247.77,247.7,18.75377366]
[1737608585089,0.03,247.77,247.56,51.35949376]
[1737608585090,0.03,247.77,247.72,18.75377366]
[1737608585271,0.03,247.77,247.7,18.75377366]
[1737608585472,0.03,247.77,247.72,18.75377366]
[1737608585677,0.03,247.77,247.74,18.75377366]
[1737608586401,0.03,247.77,247.74,312.0]
[1737608586571,0.03,247.77,247.76,18.75377366]
[1737608587180,0.03,247.77,247.74,330.75377366]
[1737608587389,0.03,247.77,247.76,18.75377366]
[1737608592493,0.03,247.77,247.76,330.75377366]
[1737608593504,0.03,247.77,247.76,354.32312338]
[1737608593875,0.03,247.77,247.76,335.56934972]
[1737608594088,0.03,247.83,247.81,20.0]
[1737608594299,1.5145,247.92,247.81,20.0]
[1737608594300,1.5145,248.03,247.87,4.0343]
[1737608594507,20.26827366,248.03,247.95,18.75377366]
[1737608594699,4.0322,248.01,247.95,18.75377366]
[1737608594999,5.5463,248.03,247.95,18.75377366]
[1737608595674,23.776884,248.0,247.93,18.75377366]
[1737608595880,28.56543159,248.0,247.93,18.75377366]
[1737608596101,27.809184,248.0,247.93,18.75377366]
[1737608596404,4.032,248.02,247.95,18.75377366]
[1737608596586,23.776884,248.01,247.95,18.75377366]
[1737608596907,4.032,248.02,247.95,18.75377366]
[1737608597105,4.0321,248.01,247.95,18.75377366]
[1737608598199,23.776884,247.98,247.91,18.75377366]
[1737608598403,23.776884,247.96,247.91,18.75377366]
[1737608598595,23.776884,247.96,247.82,6.0288]
[1737608598902,23.776884,247.96,247.89,18.75377366]
[1737608599493,23.776884,247.96,247.82,6.0288]
[1737608599494,0.03,247.97,247.93,18.75377366]
[1737608599699,0.03,247.97,247.95,18.75377366]
[1737608600219,0.03,247.97,247.96,0.60476725]
[1737608600408,0.03,247.97,247.95,18.75377366]
[1737608601292,0.03,247.97,247.96,312.0]
[1737608602295,0.03,247.97,247.95,18.75377366]
[1737608603991,0.03,247.97,247.95,22.78667366]
[1737608604304,0.03,247.97,247.95,18.75377366]
[1737608604696,0.03,247.97,247.95,22.78667366]
[1737608604899,0.03,247.97,247.95,18.75377366]
[1737608605293,0.03,247.97,247.95,22.78677366]
[1737608605497,0.03,247.97,247.95,18.75377366]
[1737608605688,0.03,247.97,247.95,23.3915871]
[1737608606088,0.03,247.97,247.95,22.78677366]
[1737608608513,0.03,247.97,247.95,18.75377366]
[1737608610323,0.03,247.97,247.93,18.75377366]
[1737608611219,0.03,247.97,247.95,18.75377366]
[1737608612923,0.03,247.97,247.93,18.75377366]
[1737608613126,23.776884,247.96,247.89,18.75377366]
[1737608613306,0.03,247.97,247.91,18.75377366]
[1737608613502,0.03,247.97,247.95,18.75377366]
[1737608614021,0.03,247.97,247.93,18.75377366]
[1737608614504,23.806884,247.97,247.93,18.75377366]
[1737608615021,4.0628,247.97,247.91,18.75377366]
[1737608615600,0.03,247.97,247.93,18.75377366]
[1737608616626,0.03,247.97,247.91,18.81677366]
[1737608616815,4.0627,247.97,247.91,18.81677366]
[1737608617828,4.0627,247.97,247.91,0.063]
[1737608618707,22.81647366,247.97,247.91,0.063]
[1737608619416,1.6117,247.96,247.91,0.063]
[1737608619609,23.776884,247.94,247.91,0.063]
[1737608620523,23.776884,247.92,247.91,0.063]
[1737608620827,27.810384,247.92,247.91,0.063]
[1737608622226,1.6117,247.96,247.91,18.81677366]
[1737608622743,0.03,247.97,247.93,18.75377366]
[1737608622931,0.03,247.97,247.91,4.0966]
[1737608622932,0.03,247.97,247.95,18.75377366]
[1737608625718,0.03,247.97,247.95,330.75377366]
[1737608625922,0.03,247.97,247.91,18.81677366]
[1737608626227,0.03,247.97,247.96,18.75377366]
[1737608627434,0.03,247.97,247.94,18.75377366]
[1737608628937,18.75377366,247.96,247.91,0.063]
[1737608629115,23.776884,247.95,247.91,0.063]
[1737608629311,18.75377366,247.96,247.91,0.063]
[1737608629538,0.03,247.97,247.91,0.063]
[1737608629744,23.806884,247.97,247.91,0.063]
[1737608630935,0.03,247.97,247.92,18.75377366]
[1737608631134,0.03,247.97,247.96,18.75377366]
[1737608631942,0.03,247.97,247.96,330.75377366]
[1737608633446,0.03,247.97,247.96,18.75377366]
[1737608633625,0.03,247.97,247.92,18.75377366]
[1737608634552,0.03,247.97,247.91,0.063]
[1737608634740,18.78377366,247.97,247.91,0.063]
[1737608635322,23.806884,247.97,247.91,0.063]
[1737608635950,0.03,247.97,247.91,0.063]
[1737608636145,0.03,247.97,247.94,18.75377366]
[1737608636448,0.03,247.97,247.96,18.75377366]
[1737608639135,0.03,247.97,247.94,18.75377366]
[1737608639334,0.03,247.97,247.92,22.78717366]
[1737608639536,0.03,247.97,247.92,18.75377366]
[1737608640425,0.03,247.97,247.91,0.063]
[1737608640632,18.75377366,247.95,247.91,0.063]
[1737608640953,23.776884,247.96,247.91,0.063]
[1737608641130,27.809884,247.96,247.91,0.063]
[1737608642551,18.75377366,247.93,247.91,0.063]
[1737608642854,25.388584,247.94,247.91,0.063]
[1737608643051,18.75377366,247.93,247.91,0.063]
[1737608643248,23.776884,247.92,247.91,0.063]
[1737608643945,1.6117,247.94,247.91,4.0967]
[1737608644258,0.03,247.97,247.92,18.75377366]
[1737608644453,0.03,247.97,247.95,18.75377366]
[1737608645172,0.03,247.97,247.95,22.78667366]
[1737608645544,0.03,247.97,247.95,23.39142816]
[1737608646246,0.03,247.97,247.95,24.39142816]
[1737608646552,0.03,247.97,247.96,312.0]
[1737608647654,0.03,247.97,247.95,18.75377366]
[1737608648155,0.03,247.97,247.93,18.75377366]
[1737608648352,0.03,247.97,247.91,18.81677366]
[1737608648549,23.806884,247.97,247.91,0.063]
[1737608649253,23.776884,247.95,247.91,0.063]
[1737608649455,23.776884,247.93,247.91,0.063]
[1737608651863,0.03,247.94,247.91,0.063]
[1737608654460,0.03,247.94,247.91,18.81677366]
[1737608654664,0.03,247.94,247.93,18.75377366]
[1737608654957,0.03,247.94,247.93,330.75377366]
[1737608655556,0.03,247.94,247.93,18.75377366]
[1737608655741,0.03,247.94,247.91,18.81677366]
[1737608656150,0.03,247.94,247.91,0.063]
[1737608660152,42.53065766,247.92,247.91,0.063]
[1737608661167,43.28708984,247.92,247.91,0.063]
[1737608662169,2.0,247.88,247.83,0.063]
[1737608662465,23.776884,247.83,247.68,18.75377366]
[1737608662779,23.776884,247.73,247.66,18.81677366]
[1737608663066,18.75377366,247.72,247.66,0.063]
[1737608663263,18.75377366,247.7,247.66,0.063]
[1737608664268,22.79087366,247.7,247.66,0.063]
[1737608665068,18.75377366,247.74,247.66,0.063]
[1737608665370,18.75377366,247.7,247.66,0.063]
[1737608665773,23.776884,247.69,247.66,0.063]
[1737608665981,18.75377366,247.68,247.66,0.063]
[1737608666349,4.0376,247.67,247.66,0.063]
[1737608666981,27.814484,247.67,247.66,0.063]
[1737608668177,28.57168665,247.67,247.66,0.063]
[1737608668964,42.53065766,247.59,247.58,0.063]
[1737608670580,46.56955766,247.59,247.58,0.063]
[1737608670964,46.56955766,247.59,247.53,0.063]
[1737608670965,20.0,247.56,247.53,0.063]
[1737608671276,42.53065766,247.54,247.53,0.063]
[1737608672266,18.75377366,247.6,247.53,0.063]
[1737608673477,23.776884,247.59,247.53,0.063]
[1737608673870,18.75377366,247.58,247.53,0.063]
[1737608674779,18.75377366,247.54,247.53,0.063]
[1737608675482,43.28833625,247.54,247.53,0.0001]
[1737608675957,47.32803625,247.54,247.51,0.0001]
[1737608676157,42.53065766,247.52,247.51,0.0001]
[1737608676367,43.28848641,247.52,247.51,0.0001]
[1737608676577,43.28848641,247.52,247.47,0.063]
[1737608676783,42.53065766,247.48,247.47,0.063]
[1737608676970,43.28855514,247.48,247.47,0.063]
[1737608677166,23.776884,247.47,247.34,18.75377366]
[1737608677468,23.776884,247.36,247.33,0.063]
[1737608677671,18.75377366,247.35,247.33,0.063]
[1737608678171,23.776884,247.34,247.33,0.063]
[1737608681081,42.53065766,247.34,247.33,0.0001]
[1737608681484,23.776884,247.34,247.33,0.0001]
[1737608681982,18.75377366,247.35,247.33,0.0001]
[1737608682279,18.75377366,247.37,247.33,0.0001]
[1737608683379,42.53065766,247.39,247.33,0.0001]
[1737608683585,18.75377366,247.39,247.33,0.0001]
[1737608683970,23.776884,247.36,247.33,0.0001]
[1737608684173,18.75377366,247.35,247.33,0.0001]
[1737608684377,23.776884,247.34,247.33,0.0001]
[1737608686485,25.393259,247.34,247.33,0.0001]
[1737608688692,45.67433266,247.34,247.33,0.0001]
[1737608689389,14.151,247.33,247.28,0.063]
[1737608689585,42.53065766,247.29,247.28,0.063]
[1737608691568,46.57445766,247.29,247.28,0.063]
[1737608692994,23.776884,247.28,247.26,0.0001]
[1737608693169,43.28916624,247.27,247.26,0.0001]
[1737608693495,47.33326624,247.27,247.26,0.0001]
[1737608693675,48.33326624,247.27,247.26,0.0001]
[1737608694467,1.0,247.25,247.08,18.81677366]
[1737608694672,42.53065766,247.2,247.08,18.81677366]
[1737608695388,42.53065766,247.2,247.1,18.75377366]
[1737608695989,42.53065766,247.2,247.08,18.81677366]
[1737608695990,46.57595766,247.2,247.08,18.81677366]
[1737608696195,66.0884249,247.2,247.08,0.063]
[1737608696677,66.0884249,247.2,247.09,20.0]
[1737608697096,66.0884249,247.2,247.08,0.063]
[1737608697399,23.776884,247.16,247.08,0.063]
[1737608697593,42.53065766,247.09,247.08,0.063]
[1737608698099,18.75377366,247.13,247.08,0.063]
[1737608698591,23.776884,247.12,247.08,0.063]
[1737608699485,18.75377366,247.17,247.1,18.75377366]
[1737608699797,6.3746,247.23,247.14,18.75377366]
[1737608699798,34.92441766,247.23,247.14,18.75377366]
[1737608699994,22.79867366,247.23,247.14,24.81667366]
[1737608700207,22.79867366,247.23,247.14,6.0629]
[1737608700208,18.75377366,247.21,247.14,6.0629]
[1737608700376,23.776884,247.18,247.14,6.0629]
[1737608700905,4.0449,247.23,247.08,24.87967366]
[1737608700906,23.776884,247.16,247.08,24.87967366]
[1737608702282,18.75377366,247.17,247.08,28.92687366]
[1737608702599,18.75377366,247.23,247.14,18.75377366]
[1737608702993,23.776884,247.22,247.14,18.75377366]
[1737608703182,18.75377366,247.23,247.14,18.75377366]
[1737608703583,27.821784,247.22,247.14,18.75377366]
[1737608704188,18.75377366,247.27,247.16,18.75377366]
[1737608704504,23.776884,247.26,247.18,18.75377366]
[1737608704677,18.75377366,247.29,247.2,18.75377366]
[1737608704878,18.75377366,247.33,247.24,38.75377366]
[1737608705098,0.03,247.34,247.26,18.75377366]
[1737608705475,0.03,247.34,247.28,20.33467366]
[1737608705699,0.03,247.34,247.3,18.75377366]
[1737608705908,0.03,247.34,247.25,18.75377366]
[1737608706481,0.03,247.34,247.29,18.75377366]
[1737608706682,0.03,247.34,247.31,18.75377366]
[1737608706888,0.03,247.34,247.29,18.75377366]
[1737608707505,0.03,247.34,247.27,18.75377366]
[1737608707796,23.776884,247.33,247.25,18.75377366]
[1737608709490,4.0433,247.32,247.25,18.75377366]
[1737608710413,23.776884,247.31,247.25,330.75377366]
[1737608711210,23.776884,247.31,247.25,18.75377366]
[1737608712010,23.776884,247.31,247.26,20.0]
[1737608712200,27.820384,247.31,247.26,20.0]
[1737608713699,23.776884,247.31,247.25,18.75377366]
[1737608713911,0.03,247.34,247.29,18.75377366]
[1737608714115,23.776884,247.33,247.27,18.75377366]
[1737608714420,0.03,247.31,247.27,330.75377366]
[1737608715007,0.03,247.31,247.3,38.75377366]
[1737608716718,0.03,247.31,247.28,22.79767366]
[1737608717419,0.03,247.31,247.3,20.0]
[1737608717839,0.03,247.31,247.3,38.75377366]
[1737608717994,0.03,247.31,247.3,39.36016833]
[1737608718198,0.03,247.31,247.3,351.36016833]
[1737608718411,0.03,247.31,247.3,350.75377366]
[1737608719426,0.03,247.31,247.3,380.75377366]
[1737608720023,0.03,247.31,247.3,350.75377366]
[1737608720620,0.03,247.31,247.3,380.75377366]
[1737608720799,0.03,247.34,247.33,32.0]
[1737608721005,4.0402,247.51,247.36,50.0]
[1737608721308,18.75377366,247.52,247.36,50.0]
[1737608721309,18.75377366,247.52,247.43,18.75377366]
[1737608721699,23.776884,247.51,247.43,22.79517366]
[1737608722024,1.5468,247.53,247.45,18.75377366]
[1737608722210,18.75377366,247.54,247.45,18.75377366]
[1737608722405,4.0396,247.55,247.43,4.0414]
[1737608722406,4.0396,247.55,247.47,18.75377366]
[1737608722619,18.75377366,247.51,247.41,22.79547366]
[1737608723510,18.75377366,247.51,247.44,20.0]
[1737608723824,22.79367366,247.53,247.45,18.75377366]
[1737608723999,18.75377366,247.55,247.47,18.75377366]
[1737608724199,0.03,247.56,247.49,18.75377366]
[1737608725026,18.75377366,247.53,247.48,20.0]
[1737608725200,18.75377366,247.53,247.45,18.75377366]
[1737608726008,27.816484,247.55,247.45,18.75377366]
[1737608726218,0.03,247.56,247.47,38.75377366]
[1737608726404,4.0694,247.56,247.47,38.75377366]
[1737608726609,23.776884,247.55,247.47,38.75377366]
[1737608726809,42.53065766,247.55,247.47,38.75377366]
[1737608727026,42.53065766,247.55,247.47,350.75377366]
[1737608727322,42.53065766,247.55,247.47,38.75377366]
[1737608728128,46.57035766,247.55,247.48,20.0]
[1737608729224,23.776884,247.52,247.44,6.97689112]
[1737608729430,23.776884,247.5,247.41,18.75377366]
[1737608729826,23.776884,247.5,247.44,20.0]
[1737608730332,23.776884,247.5,247.41,18.75377366]
[1737608730531,4.0405,247.49,247.41,18.75377366]
[1737608730913,4.0405,247.49,247.44,20.0]
[1737608732224,23.776884,247.5,247.44,20.0]
[1737608733313,27.817284,247.5,247.44,20.0]
[1737608734715,18.75377366,247.49,247.44,20.0]
[1737608736040,18.75377366,247.47,247.4,0.60610118]
[1737608736239,18.75377366,247.46,247.38,25.12467366]
[1737608736434,18.75377366,247.48,247.4,18.75377366]
[1737608737241,18.75377366,247.48,247.43,20.0]
[1737608738254,46.57105766,247.5,247.42,18.75377366]
[1737608738840,22.82327366,247.56,247.48,18.75377366]
[1737608739034,0.03,247.5,247.48,18.75377366]
[1737608740138,0.03,247.56,247.52,20.0]
[1737608740312,0.03,247.56,247.54,18.75377366]
[1737608740518,0.03,247.56,247.55,0.60566584]
[1737608740718,0.03,247.56,247.54,18.75377366]
[1737608741445,0.03,247.56,247.54,19.35957497]
[1737608741640,0.03,247.56,247.54,20.35957497]
[1737608742133,0.03,247.56,247.55,22.79327366]
[1737608742718,0.03,247.56,247.55,334.79327366]
[1737608742934,0.03,247.56,247.55,316.0395]
[1737608743134,0.03,247.56,247.55,334.79327366]
[1737608743741,0.03,247.56,247.55,312.0]
[1737608747647,0.03,247.56,247.55,330.75377366]
[1737608748247,0.03,247.56,247.55,312.0]
[1737608748623,0.03,247.56,247.55,331.75377366]
[1737608750449,0.03,247.59,247.58,50.0]
[1737608750657,0.03,247.59,247.58,69.35935161]
[1737608751344,6.5652,247.77,247.64,20.0]
[1737608751345,1.5714,247.76,247.64,20.0]
[1737608751523,1.5714,247.76,247.69,18.75377366]
[1737608751937,1.5714,247.76,247.69,22.79097366]
[1737608752236,1.5714,247.76,247.7,0.60539137]
[1737608752627,1.5714,247.76,247.69,18.75377366]
[1737608753042,18.75377366,247.74,247.65,19.35929683]
[1737608753237,20.32517366,247.76,247.67,18.75377366]
[1737608753557,20.32517366,247.76,247.7,312.0]
[1737608753751,1.5714,247.76,247.71,4.0369]
[1737608753935,18.78377366,247.8,247.71,23.39606361]
[1737608754136,0.03,247.8,247.73,18.75377366]
[1737608754454,0.03,247.8,247.75,18.75377366]
[1737608755358,0.03,247.8,247.74,20.0]
[1737608755537,0.03,247.8,247.73,18.75377366]
[1737608755839,4.0655,247.8,247.73,18.75377366]
[1737608757047,0.03,247.8,247.74,312.0]
[1737608757247,0.03,247.8,247.73,18.75377366]
[1737608757447,0.03,247.8,247.75,18.75377366]
[1737608758032,0.03,247.8,247.75,22.78997366]
[1737608758348,0.03,247.8,247.77,18.75377366]
[1737608758850,0.03,247.8,247.75,18.75377366]
[1737608759230,0.03,247.8,247.74,20.0]
[1737608760251,0.03,247.8,247.74,332.0]
[1737608762163,0.03,247.8,247.75,18.75377366]
[1737608762755,0.03,247.8,247.78,38.75377366]
[1737608762950,0.03,247.8,247.79,0.60512851]
[1737608763759,0.03,247.8,247.79,12.31917954]
[1737608764355,0.03,247.8,247.79,16.35477954]
[1737608764659,0.03,247.81,247.8,1.0]
[1737608764835,0.03,247.85,247.83,20.0]
[1737608765032,0.03,247.85,247.84,11.71405103]
[1737608765442,0.03,247.85,247.84,41.71405103]
[1737608765653,0.03,247.94,247.87,20.0]
[1737608765850,0.03,247.94,247.9,18.73041123]
[1737608766844,0.03,247.94,247.9,22.76421123]
[1737608769064,0.03,247.94,247.9,334.76421123]
[1737608771263,0.03,247.94,247.9,18.73041123]
[1737608771452,0.03,247.94,247.88,18.73041123]
[1737608772666,0.03,247.94,247.88,22.76451123]
[1737608773568,0.03,247.94,247.88,18.73041123]
[1737608774278,0.03,247.94,247.92,330.73041123]
[1737608774765,0.03,247.94,247.92,18.73041123]
[1737608774959,0.03,247.94,247.93,4.0333]
[1737608775161,0.03,247.94,247.93,34.0333]
[1737608775385,0.03,247.97,247.96,50.0]
[1737608775554,0.03,247.97,247.96,39.33505823]
[1737608775958,0.03,247.97,247.96,69.33505823]
[1737608776952,0.03,248.02,247.96,73.36795823]
[1737608777270,0.03,248.02,248.0,18.73041123]
[1737608777771,0.03,248.02,248.0,330.73041123]
[1737608779169,0.03,248.02,248.0,18.73041123]
[1737608782079,0.03,248.02,248.0,330.73041123]
[1737608782461,0.03,248.02,248.0,18.73041123]
[1737608784163,0.03,248.02,248.01,1.0]
[1737608784363,10.0705,248.25,248.15,18.73041123]
[1737608784364,20.37131123,248.22,248.15,18.73041123]
[1737608784568,24.40001123,248.22,248.15,18.73041123]
[1737608784771,20.37131123,248.22,248.15,18.73041123]
[1737608785079,1.6409,248.22,248.15,18.73041123]
[1737608785260,1.6409,248.22,248.17,18.73041123]
[1737608785584,1.6409,248.22,248.17,330.73041123]
[1737608785778,1.6409,248.22,248.18,11.67988047]
[1737608786584,11.70988047,248.26,248.18,11.67988047]
[1737608786786,1.6409,248.59,248.31,31.0]
[1737608787076,1.6409,248.59,248.43,30.0]
[1737608787077,13.32078047,248.59,248.43,30.0]
[1737608787381,1.6409,248.59,248.44,11.67988047]
[1737608787557,5.75450602,248.55,248.41,11.67988047]
[1737608787757,9.77790602,248.55,248.35,50.0]
[1737608787980,5.0,248.55,248.48,11.67988047]
[1737608788583,5.0,248.55,248.52,11.67988047]
[1737608788782,5.0,248.55,248.5,11.67988047]
[1737608788988,5.0,248.55,248.54,312.0]
[1737608789156,5.0,248.55,248.46,11.67988047]
[1737608789358,23.776884,248.53,248.43,11.67988047]
[1737608789774,18.64937191,248.53,248.43,18.64937191]
[1737608790282,18.64937191,248.53,248.45,18.64937191]
[1737608790675,18.64937191,248.53,248.43,18.64937191]
[1737608790983,18.64937191,248.48,248.39,18.64937191]
[1737608791163,18.64937191,248.5,248.43,18.64937191]
[1737608791489,18.64937191,248.5,248.41,18.64937191]
[1737608791785,23.776884,248.47,248.39,18.64937191]
[1737608792785,23.776884,248.45,248.37,18.64937191]
[1737608792957,18.64937191,248.5,248.42,18.64937191]
[1737608793163,18.64937191,248.52,248.44,18.64937191]
[1737608793882,9.77791442,248.55,248.48,18.64937191]
[1737608793883,5.0,248.55,248.48,18.64937191]
[1737608795676,5.0,248.55,248.5,312.0]
[1737608795977,18.64937191,248.52,248.44,18.64937191]
[1737608796472,23.776884,248.51,248.42,18.64937191]
[1737608796689,18.64937191,248.5,248.42,18.64937191]
[1737608797785,18.64937191,248.48,248.4,18.64937191]
[1737608797987,23.776884,248.47,248.38,18.64937191]
[1737608798192,18.64937191,248.46,248.38,18.64937191]
[1737608798689,18.64937191,248.46,248.36,18.64937191]
[1737608798864,23.776884,248.45,248.36,18.64937191]
[1737608799790,18.64937191,248.41,248.31,18.64937191]
[1737608800410,18.64937191,248.39,248.31,18.64937191]
[1737608800690,18.64937191,248.37,248.29,18.64937191]
[1737608802196,18.64937191,248.44,248.36,48.64937191]
[1737608802396,18.64937191,248.54,248.42,18.64937191]
[1737608802575,18.64937191,248.46,248.42,312.0]
[1737608803196,18.64937191,248.44,248.42,312.0]
[1737608803398,18.64937191,248.44,248.33,18.64937191]
[1737608803691,18.64937191,248.41,248.33,18.64937191]
[1737608803995,18.64937191,248.39,248.29,22.67677191]
[1737608805204,20.23937191,248.41,248.31,18.64937191]
[1737608805493,1.59,248.41,248.35,18.64937191]
[1737608805697,20.23937191,248.41,248.33,18.64937191]
[1737608806190,20.23937191,248.41,248.32,4.0269]
[1737608806797,20.23937191,248.41,248.31,22.67647191]
[1737608806995,20.23937191,248.41,248.33,18.64937191]
[1737608807179,0.03,248.46,248.37,18.64937191]
[1737608807379,18.64937191,248.42,248.35,18.64937191]
[1737608807771,18.64937191,248.42,248.31,4.0271]
[1737608807772,18.64937191,248.42,248.33,18.64937191]
[1737608807978,18.64937191,248.4,248.31,22.67647191]
[1737608809183,18.64937191,248.42,248.33,18.64937191]
[1737608809374,18.64937191,248.42,248.33,330.64937191]
[1737608810091,18.64937191,248.42,248.34,4.0267]
[1737608810796,18.64937191,248.38,248.31,18.64937191]
[1737608810990,18.64937191,248.4,248.31,18.64937191]
[1737608811674,18.64937191,248.38,248.31,18.64937191]
[1737608813175,18.64937191,248.38,248.31,330.64937191]
[1737608813176,4.0262,248.37,248.31,330.64937191]
[1737608813377,18.64937191,248.36,248.27,18.64937191]
[1737608815488,18.64937191,248.36,248.29,18.64937191]
[1737608816480,1.59,248.35,248.29,18.64937191]
[1737608816797,20.23937191,248.35,248.27,334.67717191]
[1737608818009,20.23937191,248.35,248.27,334.74017191]
[1737608818178,18.64937191,248.31,248.27,0.063]
[1737608818493,1.59,248.41,248.3,18.64937191]
[1737608818691,1.59,248.41,248.38,18.64937191]
[1737608819213,1.59,248.41,248.36,18.64937191]
[1737608819388,1.59,248.41,248.34,18.64937191]
[1737608819698,20.23937191,248.41,248.34,18.64937191]
[1737608820206,18.64937191,248.39,248.32,18.64937191]
[1737608820801,18.64937191,248.39,248.3,22.67667191]
[1737608821184,18.64937191,248.35,248.3,312.0]
[1737608821492,18.64937191,248.33,248.3,312.0]
[1737608821696,18.64937191,248.35,248.3,312.0]
[1737608822179,23.776884,248.34,248.3,312.0]
[1737608822494,18.64937191,248.35,248.27,0.063]
[1737608822495,18.64937191,248.31,248.27,0.063]
[1737608822703,1.59,248.28,248.27,0.063]
[1737608822886,26.12225382,248.28,248.27,0.063]
[1737608823082,23.776884,248.27,248.26,0.063]
[1737608823286,24.776884,248.27,248.26,0.063]
[1737608824196,28.804684,248.27,248.12,18.64937191]
[1737608824393,18.64937191,248.2,248.12,18.64937191]
[1737608824787,18.64937191,248.26,248.17,18.64937191]
[1737608825208,18.64937191,248.26,248.19,18.64937191]
[1737608825596,18.64937191,248.26,248.18,312.0]
[1737608825794,18.64937191,248.26,248.17,18.64937191]
[1737608825994,18.64937191,248.26,248.19,18.64937191]
[1737608826197,20.23937191,248.28,248.2,4.029]
[1737608827198,1.59,248.28,248.24,18.64937191]
[1737608827602,1.59,248.28,248.2,4.029]
[1737608827603,20.23937191,248.28,248.2,18.64937191]
[1737608827903,18.64937191,248.21,248.14,18.64937191]
[1737608828601,18.64937191,248.21,248.12,18.64937191]
[1737608828815,18.64937191,248.21,248.12,330.64937191]
[1737608831215,18.64937191,248.21,248.12,334.67957191]
[1737608831514,18.64937191,248.25,248.16,18.64937191]
[1737608831819,1.59,248.28,248.2,18.64937191]
[1737608834323,1.59,248.28,248.24,18.64937191]
[1737608834515,1.59,248.28,248.24,330.64937191]
[1737608836026,1.59,248.28,248.24,18.64937191]
[1737608837416,6.3412,248.31,248.26,18.64937191]
[1737608838203,6.3412,248.31,248.17,2.21540734]
[1737608838204,23.776884,248.3,248.24,18.64937191]
[1737608838404,23.776884,248.25,248.16,18.64937191]
[1737608838626,18.64937191,248.21,248.12,18.64937191]
[1737608838937,18.64937191,248.15,248.06,18.64937191]
[1737608839229,6.0088,248.18,248.12,18.64937191]
[1737608839433,1.639,248.2,248.14,18.64937191]
[1737608840328,1.639,248.2,248.07,0.6045892]
[1737608840329,1.639,248.2,248.16,18.64937191]
[1737608840931,1.639,248.2,248.09,0.60438764]
[1737608840932,1.5483,248.26,248.18,18.64937191]
[1737608841321,1.5483,248.26,248.09,0.60438764]
[1737608841322,1.5483,248.26,248.22,18.64937191]
[1737608842341,1.5483,248.26,248.2,22.67827191]
[1737608843228,1.5483,248.26,248.18,330.64937191]
[1737608843838,6.0468,248.3,248.22,18.64937191]
[1737608844533,18.64937191,248.27,248.17,18.64937191]
[1737608845038,18.64937191,248.25,248.15,18.64937191]
[1737608845337,18.64937191,248.23,248.14,4.0299]
[1737608846638,18.64937191,248.23,248.15,18.64937191]
[1737608847044,28.72357191,248.3,248.21,18.64937191]
[1737608849013,18.64937191,248.28,248.19,18.64937191]
[1737608849208,18.64937191,248.26,248.17,18.64937191]
[1737608850129,18.64937191,248.26,248.18,4.0293]
[1737608851342,18.64937191,248.24,248.17,312.0]